Cogmind - Beta 14 @@@ ROGUE MODE // 2024.09.26 @ 13:29:41 Player: cptwinky Result: Destroyed by Quarantine Guard with Hypercooled Linear Accelerator Performance ------------- Evolutions (8) 4000 Regions Visited (26) 5200 Robots Destroyed (474) 2370 Value Destroyed (20869) 20869 Prototype IDs (64) 1280 Alien Tech Used (2) 400 Bonus (12758) 12758 TOTAL SCORE: 46877 Bonus ------- High Alert Combat Kills 1876 Follower Combat Kills 5185 Entered Garrisons 600 Used RIF Installer 1500 Network Hubs Disabled 200 MAIN.C Attacked Warlord 500 Warlord Defense Kills 914 Built Enhanced Grunts 300 A7 Reached Mainframe 300 Met R17 at Cetus 500 Met R17 at Research 2000 Friendly Fire -1117 Cogmind --------- Core Integrity 0/1450 Matter 92/300 Energy 435/450 System Corruption 18% Temperature Cool (0) Movement Walking (320) Ox3 Location -2/Quarantine Parts ------- > --- POWER (3) -------- (None) > --- PROPULSION (6) --- Advanced Medium Treads Biometal Leg > --- UTILITY (11) ----- Huge Storage Unit Energy Well Improved Hacking Suite > --- WEAPON (3) ------- DM-GVY's Chainsaw > --- INVENTORY (25) --- High-capacity Matter Pod (0) Long-range Sensor Array Experimental Terrain Scanner Advanced Force Field Improved Hacking Suite Relay Coupler [NC] (25) Relay Coupler [NC] (29) Relay Coupler [NC] (33) Advanced Component Analysis Suite Long-range Tractor Beam Transdimensional Reconstructor Transdimensional Reconstructor Terrabomb Terrabomb Advanced Remote Datajack Advanced Remote Datajack Improved Plasma Cutter Multitool Peak State ------------ > --- POWER ------------ Reinforced Fission Core Quantum Reactor Quantum Reactor > --- PROPULSION ------- Improved Medium Treads Improved Medium Treads Armored Heavy Treads Armored Heavy Treads > --- UTILITY ---------- Advanced Cooling System Improved Coolant Injector Huge Storage Unit Advanced Signal Interpreter Advanced Targeting Computer Centrium Light Armor Plating Phase Armor Improved Hacking Suite Advanced Hacking Suite > --- WEAPON ----------- Cooled Plasma Cannon Hypervelocity Gauss Cannon > --- INVENTORY -------- Cooled Antimatter Reactor Quantum Reactor Armored Heavy Treads High-capacity Matter Pod Long-range Sensor Array Experimental Terrain Scanner Advanced Hardlight Generator Advanced Force Field Improved Hacking Suite Relay Coupler [NC] Relay Coupler [NC] Relay Coupler [NC] Advanced Component Analysis Suite Long-range Tractor Beam Transdimensional Reconstructor Transdimensional Reconstructor Transdimensional Reconstructor Linear Accelerator Rocket Array Advanced Remote Datajack Advanced Remote Datajack Improved Plasma Cutter Multitool DM-GVY's Chainsaw [Rating: 164] Favorites ----------- Power Cooled Ion Engine Engine Cooled Ion Engine Power Core Reinforced Fission Core Reactor Quantum Reactor Propulsion Light Treads Treads Light Treads Leg Biometal Leg Wheel Centrium Wheel Utility Huge Storage Unit Device Scrap Suit Storage Huge Storage Unit Processor Makeshift Targeting Computer Hackware System Shield Protection Improved Light Armor Plating Artifact Phase Armor Weapon Precision Assault Rifle Energy Gun Improved Arc Projector Energy Cannon Cooled Plasma Cannon Ballistic Gun Precision Assault Rifle Ballistic Cannon Hypervelocity Gauss Cannon Launcher Rocket Array Special Weapon CPS Tube Slashing Weapon DM-GVY's Chainsaw Special Melee Weapon Improved Datajack Build | -11 -10 -10 -10 -8 -8 -8 -8 -7 -7 -7 -7 -5 -5 -5 -5 -5 -4 -4 -4 -4 -3 -3 -3 -3 -2 -2 ------- Run | Yrd Mat Min Sub Mat Gar Mat Gar Fac Sto Rec Scr Fac Ext Cet Arc Hub Fac Upp Upp War Pro Res Tes Gar Res Qua Slots Evolved 16 | . . . . 4 . . . 2 . . . 4 . . . . 2 . . . . 2 . . 2 . Power 2 | . . . . . . . . . . . . 1 . . . . . . . . . . . . 1 . Propulsion 4 | . . . . 1 . . . 1 . . . . . . . . . . . . . 2 . . . . Utility 9 | . . . . 2 . . . 1 . . . 3 . . . . 2 . . . . . . . 1 . Weapon 1 | . . . . 1 . . . . . . . . . . . . . . . . . . . . . . Parts Attached 611 | 6 10 2 34 33 27 46 14 67 47 9 79 10 24 10 5 28 4 5 6 9 27 13 2 31 25 38 Power 45 | 1 1 . 4 3 . 2 1 1 3 . 4 3 . 1 . 4 2 . . 2 1 . . 2 4 6 Engine 30 | 1 1 . 4 2 . 2 1 1 3 . 4 3 . . . 3 1 . . 1 . . . . 3 . Core 2 | . . . . 1 . . . . . . . . . . . . . . . . . . . . 1 . Reactor 13 | . . . . . . . . . . . . . . 1 . 1 1 . . 1 1 . . 2 . 6 Propulsion 83 | 2 1 . 4 12 2 8 . 9 6 . 17 . 1 1 . 4 . . . 1 1 2 . 1 1 10 Treads 79 | 2 1 . 4 12 2 8 . 9 6 . 17 . 1 1 . 4 . . . 1 1 2 . 1 1 6 Leg 3 | . . . . . . . . . . . . . . . . . . . . . . . . . . 3 Wheel 1 | . . . . . . . . . . . . . . . . . . . . . . . . . . 1 Hover . | . . . . . . . . . . . . . . . . . . . . . . . . . . . Flight . | . . . . . . . . . . . . . . . . . . . . . . . . . . . Utility 175 | 1 2 . 2 7 6 13 3 22 13 4 25 7 9 . 4 3 2 3 5 1 6 7 1 4 12 13 Device 68 | . . . 1 . . . . 9 10 . 10 2 2 . 1 . 1 1 5 . 4 3 1 2 7 9 Storage 7 | 1 1 . 1 1 1 1 . . . . . . . . . . . . . . . . . . . 1 Processor 12 | . 1 . . 1 . 1 . 1 . 1 2 1 . . . . . 1 . . . 2 . . 1 . Hackware 20 | . . . . 1 2 3 1 3 1 1 . 1 1 . . . 1 . . . 2 1 . . 2 . Protection 67 | . . . . 4 3 8 2 9 2 2 13 3 6 . 3 3 . 1 . 1 . 1 . 2 2 2 Artifact 1 | . . . . . . . . . . . . . . . . . . . . . . . . . . 1 Weapon 308 | 2 6 2 24 11 19 23 10 35 25 5 33 . 14 8 1 17 . 2 1 5 19 4 1 24 8 9 Energy Gun 40 | 1 3 1 8 . . 1 . 3 . 1 3 . . . . . . . 1 . 5 2 1 10 . . Energy Cannon 8 | . . . . . . . . . 1 . 1 . . . . . . . . . 3 . . . . 3 Ballistic Gun 119 | 1 2 . 1 10 10 13 5 19 15 2 18 . 8 3 1 8 . 1 . . 2 . . . . . Ballistic Cannon 22 | . 1 . 5 . . . . . 1 . 1 . . . . . . 1 . 1 2 . . 4 5 1 Launcher 23 | . . 1 5 . 1 1 . 1 1 . 2 . 1 . . 1 . . . 1 2 . . 3 . 3 Special Weapon 50 | . . . . . 5 2 2 7 6 . 2 . 2 4 . 6 . . . 2 4 1 . 6 . 1 Impact Weapon . | . . . . . . . . . . . . . . . . . . . . . . . . . . . Slashing Weapon 28 | . . . 5 . 3 1 2 3 1 . 5 . . 1 . 1 . . . . . 1 . 1 3 1 Piercing Weapon . | . . . . . . . . . . . . . . . . . . . . . . . . . . . Special Melee Weapon 18 | . . . . 1 . 5 1 2 . 2 1 . 3 . . 1 . . . 1 1 . . . . . Unidentified Prototypes 13 | . . . . 1 . . . . 3 . 3 . . 1 1 1 . . . . . . . 1 . 2 Corrupted Parts 3 | . . . . . . . . . . . . . . . . 3 . . . . . . . . . . System Corruption 14 | . . . . . . . . . . . . . . . . 14 . . . . . . . . . . Parts Lost 88 | . 1 . 1 1 2 6 1 4 . . 15 . 1 1 . 2 . 1 . 3 6 2 . 8 4 29 Power 15 | . 1 . . . . 1 1 . . . 2 . . . . . . . . 1 1 . . 1 . 7 Propulsion 17 | . . . . . . 1 . 2 . . 5 . . 1 . 1 . . . . . . . . 1 6 Utility 34 | . . . 1 1 1 3 . 1 . . 3 . 1 . . 1 . . . 2 2 2 . 3 2 11 Weapon 22 | . . . . . 1 1 . 1 . . 5 . . . . . . 1 . . 3 . . 4 1 5 Highest Loss Streak 7 | . 1 . 1 1 2 2 1 3 . . 3 . 1 1 . 1 . 1 . 2 4 2 . 3 2 7 To Critical Strikes 4 | . . . . . . . . . . . 1 . . 1 . . . . . . 1 . . . . 1 Average Slot Usage (%) 93 | . 95 100 96 94 99 99 99 99 99 100 97 93 93 93 93 87 78 82 84 83 78 83 85 81 81 68 Engine 7 | . 14 14 14 7 9 9 9 7 7 7 6 10 11 8 5 4 5 5 5 4 . . . . 2 1 Reactor 1 | . . . . . . . . . . . . . . 1 5 4 5 5 5 5 9 9 9 8 5 6 Treads 24 | . 28 28 28 26 27 26 27 29 29 30 29 23 22 22 23 18 10 10 10 10 9 14 14 14 12 9 Device 6 | . . . 10 . . . . 3 6 7 5 5 5 5 5 5 10 10 14 14 13 18 14 11 12 13 Storage 7 | . 14 14 14 9 9 9 9 7 7 7 7 5 5 5 5 5 5 5 5 5 5 4 4 4 4 5 Processor 6 | . . . . 7 9 3 . 7 7 10 8 6 11 11 11 9 5 8 5 5 5 5 14 14 12 5 Hackware 5 | . . . . 6 9 10 9 12 8 3 . 5 4 5 5 5 10 10 10 10 13 12 9 9 7 6 Protection 9 | . 9 14 . 8 8 13 17 5 5 7 13 14 10 11 10 11 10 9 10 9 6 3 4 3 4 1 Energy Gun 2 | . 13 14 14 2 . . . . . . 1 . . . . . . . 4 4 3 13 14 11 . . Ballistic Gun 14 | . 8 . 3 24 24 26 25 21 21 21 16 17 16 9 17 15 15 13 5 4 1 . . . . . Ballistic Cannon 1 | . 5 14 7 . . . . . . . . . . . . . . 1 5 4 2 . . 1 11 3 Peak Build Rating 164 | 6 8 8 15 31 35 35 32 39 52 52 69 77 82 91 90 119 130 134 137 135 139 154 144 148 156 164 Average Rating 62 | 5 6 8 11 28 31 31 30 35 47 51 53 74 77 86 85 102 128 132 133 134 124 145 144 138 149 126 On Entrance 75 | . 6 8 8 14 31 32 30 31 39 52 50 56 77 81 91 85 119 130 134 135 134 133 143 144 133 139 Naked Turns . | . . . . . . . . . . . . . . . . . . . . . . . . . . . Heaviest Build 209 | 11 21 21 37 53 68 105 103 110 112 108 124 141 133 141 141 148 146 151 154 152 164 149 147 160 199 209 Greatest Support 220 | 40 40 40 40 60 60 60 60 80 82 82 86 72 72 72 72 160 160 160 160 160 160 220 215 215 195 180 Greatest Overweight (x) 50 | . . . . 1 1 1 1 1 1 1 1 1 1 2 1 4 . . . 50 1 . . . 1 8 Average Overweight (x) . | . . . . . . . 1 1 1 1 1 1 1 1 1 2 . . . 8 . . . . . 1 Largest Inventory Capacity 25 | 8 10 10 15 15 20 25 25 25 25 25 25 25 25 25 25 25 25 25 25 25 25 25 25 25 25 25 Average Capacity 22 | 7 8 10 13 15 18 24 25 25 25 25 25 25 25 25 25 25 25 25 25 25 25 25 25 25 25 25 Most Carried 25 | 8 10 10 15 15 19 25 25 25 25 25 25 25 25 25 25 25 25 25 25 25 25 25 25 25 25 25 Average Carried 21 | 4 8 10 13 14 15 22 23 24 24 24 23 24 24 24 23 24 23 24 24 24 23 23 24 24 24 19 Final Capacity 25 | 8 10 10 15 15 20 25 25 25 25 25 25 25 25 25 25 25 25 25 25 25 25 25 25 25 25 25 Final Carried 25 | 8 10 10 13 15 19 25 23 24 25 25 25 25 25 25 23 24 25 24 25 25 25 25 25 25 25 18 Class Distribution -------------------- 27% | Scavenger-Tank 15% | Mutant 8% | Scavenger-Mutant 7% | Tank 6% | Scavenger-Scrapper 5% | Gunner 4% | Scavenger-Skirmisher 3% | Commander-Tank 3% | Commander-Scrapper 3% | Scavenger-Gunner 3% | Bothacker-Tank Dominant Class ---------------- Mutant | -10/Materials Mutant | -10/Mines Mutant | -10/Subcaves Gunner | -8/Materials Gunner | -8/Garrison Bothacker-Gunner | -8/Materials Bothacker-Tank | -8/Garrison Scavenger-Skirmisher | -7/Factory Scavenger-Tank | -7/Storage Tank | -7/Recycling Scavenger-Tank | -7/Scraptown Scavenger-Scrapper | -5/Factory Scavenger-Scrapper | -5/Extension Commander-Scrapper | -5/Cetus Commander-Scrapper | -5/Archives Scavenger-Gunner | -5/Hub_04(d) Scavenger-Tank | -4/Factory Scavenger-Tank | -4/Upper Caves Commander-Tank | -4/Upper Caves Scavenger-Tank | -4/Warlord Hacker-Mutant | -3/Proximity Caves Scavenger-Gunner | -3/Research Scavenger-Skirmisher | -3/Testing Scavenger-Gunner | -3/Garrison Scavenger-Skirmisher | -2/Research Scavenger-Mutant | -2/Quarantine Resources | -11 -10 -10 -10 -8 -8 -8 -8 -7 -7 -7 -7 -5 -5 -5 -5 -5 -4 -4 -4 -4 -3 -3 -3 -3 -2 -2 ----------- Run | Yrd Mat Min Sub Mat Gar Mat Gar Fac Sto Rec Scr Fac Ext Cet Arc Hub Fac Upp Upp War Pro Res Tes Gar Res Qua Matter Collected 19124 | 226 184 86 679 992 1063 1389 498 1217 1030 125 5645 141 952 118 308 571 145 265 287 168 555 167 . 573 967 773 Remotely 270 | . . . . . . . . . . . . . . . . . . . 10 . . . . . . 260 Salvage Created 22295 | 49 412 111 497 1677 1395 2122 269 1295 1169 209 6894 152 905 . 218 267 134 99 355 109 747 . . 1009 1025 1176 Parts 1157 | 10 30 9 36 111 82 97 15 67 50 7 353 14 43 . 10 30 4 2 20 7 44 . . 43 47 26 Haulers Intercepted 16 | . 2 . . 6 . 4 . 2 1 . . . . . . . 1 . . . . . . . . . Recyclers Shooed 7 | . . . . . . 1 . 2 1 1 . 1 1 . . . . . . . . . . . . . Parts Field Recycled 12 | . . . . . . . . 7 5 . . . . . . . . . . . . . . . . . Retrieved Matter 239 | . . . . . . . . 58 181 . . . . . . . . . . . . . . . . . Parts Self-Destructed 104 | . . . 19 . . . . . . . 7 . . . . . . 4 25 . 49 . . . . . Prevented 34 | . . . . . . . . . . . . . . . . . . 23 7 . 4 . . . . . Kills | -11 -10 -10 -10 -8 -8 -8 -8 -7 -7 -7 -7 -5 -5 -5 -5 -5 -4 -4 -4 -4 -3 -3 -3 -3 -2 -2 ------- Run | Yrd Mat Min Sub Mat Gar Mat Gar Fac Sto Rec Scr Fac Ext Cet Arc Hub Fac Upp Upp War Pro Res Tes Gar Res Qua Combat Hostiles Destroyed 410 | . 11 6 18 29 30 35 7 20 18 2 114 5 11 . . 3 . 1 9 7 21 . . 24 14 25 Melee 3 | . . . . . . . . 1 . . . . . . . 1 . . . . . . . . . 1 Guns 262 | . 11 . 5 29 26 31 7 15 18 2 85 5 11 . . 2 . 1 7 1 1 . . 5 . . Cannons 72 | . . 4 5 . . . . . . . 23 . . . . . . . 2 2 12 . . . 14 10 AOE 67 | . . 2 8 . 4 4 . 4 . . 5 . . . . . . . . 4 8 . . 15 . 13 Classes Destroyed 32 | 1 6 . 2 6 1 1 . 1 . . 11 . 1 . . . . . . 1 . . . . . 1 Worker 9 | . 1 . . 1 . 1 . 2 . . . . . . . 3 1 . . . . . . . . . Builder 8 | . . . . 1 . 1 . . . . 1 . 1 . . 3 . . . . . . . . 1 . Tunneler 5 | 3 . 1 . . . . . . . . . . . . . . . . . . . . . . 1 . Hauler 16 | . 2 . . 6 . 4 . 2 1 . . . . . . . 1 . . . . . . . . . Recycler 12 | . . . . 2 . 2 . 4 2 1 . . 1 . . . . . . . . . . . . . Mechanic 3 | . . . . 1 . 1 . . . . . . . . . . . . . . . . . . . 1 Operator 15 | . 1 . . 3 . . . 1 1 . 2 . 1 . 5 . . . . . . . . . 1 . Turret 3 | . . . 2 . . . . . . . 1 . . . . . . . . . . . . . . . Watcher 8 | . 1 . . 1 1 1 . 1 2 . . . 1 . . . . . . . . . . . . . Swarmer 75 | . 6 4 3 9 5 . 2 2 3 . . 4 . . . . . . 6 . 17 . . 14 . . Grunt 103 | . 5 2 . 8 15 23 5 11 4 . . . 6 . . . . . 1 2 1 . . 5 7 8 Brawler 9 | . . . . 1 . 1 . 1 . . 1 . 1 . . . . . . 1 . . . . 1 2 Duelist 10 | . . . . . 4 3 . . . . . . . . . 1 . . . . . . . 2 . . Protector 2 | . . . . . . 1 . . . . . . . . . . . . . 1 . . . . . . Sentry 39 | . . . . 10 5 7 . 1 7 2 . . 1 . . . . 1 . . 3 . . . 2 . Demolisher 2 | . . . . . . . . . . . . . . . . . . . . 2 . . . . . . Specialist 1 | . . . . . . . . . . . . . . . . . . . . . . . . . . 1 Hunter 18 | . . . . 1 1 . . 1 1 . . . . . . . . . 2 . . . . 3 1 8 Programmer 20 | . . . . . . . . 4 3 . . 1 1 . . 1 . . . 1 . . . . 3 6 Behemoth 1 | . . . . . . . . . . . . . 1 . . . . . . . . . . . . . Lightning 1 | . . . . . . . . . . . . . . . . 1 . . . . . . . . . . Subdweller 15 | . . . 15 . . . . . . . . . . . . . . . . . . . . . . . Bolteater 8 | . . . . . . . . . . . 8 . . . . . . . . . . . . . . . Federalist 10 | . . . . . . . . . . . 10 . . . . . . . . . . . . . . . Explorer 9 | . . . . . . . . . . . 9 . . . . . . . . . . . . . . . Ranger 13 | . . . . . . . . . . . 13 . . . . . . . . . . . . . . . Guru 13 | . . . . . . . . . . . 13 . . . . . . . . . . . . . . . Scientist 13 | . . . . . . . . . . . 13 . . . . . . . . . . . . . . . Scrapper 35 | . . . . . . . . . . . 35 . . . . . . . . . . . . . . . Elite 22 | . . . . . . . . . . . 22 . . . . . . . . . . . . . . . Zionite 1 | . . . . . . . . . . . 1 . . . . . . . . . . . . . . . Packrat 1 | . . . . . . . . . . . 1 . . . . . . . . . . . . . . . Tinkerer 3 | . . . . . . . . . . . 3 . . . . . . . . . . . . . . . Thug 1 | . . . . . . . . . . . . . 1 . . . . . . . . . . . . . Butcher 1 | . . . . . . . . . . . . . . . 1 . . . . . . . . . . . Mutant 2 | . . . . . . . . . . . 2 . . . . . . . . . . . . . . . Best Kill Streak 24 | 1 3 3 6 6 7 5 3 4 5 3 24 4 4 . 2 5 1 1 5 7 8 . . 5 6 5 Combat Bots Only 24 | . 3 3 4 4 6 4 3 4 4 2 24 4 3 . . 1 . 1 5 7 8 . . 5 5 5 Max Kills in Single Turn 4 | 1 1 1 2 2 2 2 1 3 2 2 4 2 1 . 1 3 1 1 1 3 3 . . 4 2 3 Gunslinging 1 | . . . . . 1 . . 1 1 . 1 1 . . . . . . . . . . . . . . Exploded 4 | . . 1 2 . 1 2 . 3 . . 4 . . . . . . . . 3 3 . . 4 . 3 Melee 1 | . . . . . . . . 1 . . . . . . . 1 . . . . . . . . . 1 Uniques/NPCs Destroyed 1 | . . . . . . . . . . . 1 . . . . . . . . . . . . . . . Triborg (-7/Scraptown) Combat | -11 -10 -10 -10 -8 -8 -8 -8 -7 -7 -7 -7 -5 -5 -5 -5 -5 -4 -4 -4 -4 -3 -3 -3 -3 -2 -2 -------- Run | Yrd Mat Min Sub Mat Gar Mat Gar Fac Sto Rec Scr Fac Ext Cet Arc Hub Fac Upp Upp War Pro Res Tes Gar Res Qua Hostile Shots Fired 2424 | . 42 17 57 112 93 146 42 140 235 18 535 2 45 15 . 47 2 36 64 40 148 6 4 127 136 315 Missed 731 | . 8 2 21 24 35 48 10 49 88 6 160 1 17 4 . 12 . 8 24 9 45 1 3 33 43 80 Damage Taken 30743 | . 371 149 622 1190 951 1681 478 1686 913 43 4775 60 538 306 . 963 40 732 719 1445 2362 118 23 2252 2201 6125 Core 3249 | . 97 13 73 85 87 176 47 150 30 9 273 . 20 34 . 100 . 41 34 25 339 . . 209 140 1267 Absorbed by Shields 2590 | . . . . . 24 . . . 424 48 995 . 131 . . . . . . . . . . 95 519 354 Reduced by Siege Mode 352 | . . . . . . . . . . . 151 . . . . . . . . . . . . 31 10 160 Redirected to Core 712 | . . . . . . . . . . . . . . . . . . . . . . . . . . 712 Regen/Repaired (Parts) 2450 | . 42 . . 536 . 208 . 271 347 . 815 . 194 . . 19 . . 18 . . . . . . . Core Remaining (%) 59 | 100 . . 26 . . . 28 . . . 34 . . . . 84 . . . . 61 . . 83 . . Volleys Fired 1186 | 7 44 14 41 81 83 105 19 68 53 4 275 9 50 21 11 30 5 14 20 9 38 20 . 55 36 74 Largest 3 | 2 2 2 2 3 3 3 3 3 3 3 3 3 3 1 3 3 3 3 3 3 3 3 . 3 3 3 Hottest 206 | 70 85 85 120 115 69 69 69 73 84 84 195 89 89 7 96 96 96 133 173 173 206 195 . 195 183 146 Shots Fired 2930 | 14 88 28 66 238 213 301 55 181 149 12 721 24 145 21 32 58 15 43 52 21 64 44 . 135 109 101 Gun 2444 | 14 83 14 36 238 199 297 55 172 144 12 670 24 142 . 32 43 15 41 32 12 7 38 . 124 . . Cannon 351 | . 5 12 15 . . . . . . . 48 . . . . . . 2 20 6 45 . . . 109 89 Launcher 56 | . . 2 15 . 5 4 . 2 . . 2 . 1 . . 2 . . . 2 3 . . 6 . 12 Special 79 | . . . . . 9 . . 7 5 . 1 . 2 21 . 13 . . . 1 9 6 . 5 . . Kinetic 2395 | 7 44 12 35 205 199 297 55 172 144 12 704 24 142 . 32 43 15 43 41 12 19 . . . 109 29 Thermal 262 | 7 44 14 31 33 9 . . . . . 14 . . . . . . . 11 6 33 . . . . 60 Explosive 41 | . . 2 . . 5 4 . 2 . . 2 . 1 . . 2 . . . 2 3 . . 6 . 12 Electromagnetic 162 | . . . . . . . . . . . . . . . . . . . . . . 38 . 124 . . Robot Hit Streak 80 | 5 10 6 10 28 14 18 28 20 29 15 80 6 16 8 7 7 9 7 5 12 10 12 . 19 23 22 Robot Miss Streak 8 | 1 2 2 3 3 2 4 2 2 2 . 3 1 2 1 2 3 2 5 4 2 8 2 . 4 2 4 Penetration Max 3 | . . . . . . . . . 1 . 3 . 1 . 1 1 . . . . . . . . 1 . Secondary Targets 46 | . 1 . . 5 8 4 3 3 4 . 12 2 2 . . . . . . . . . . 2 . . Max Gunslinging Chain 2 | . 1 . . 1 1 1 1 1 1 . 1 2 1 . . . . . . . . . . 1 . . Shots Hit Robots 2170 | 10 58 15 32 164 158 236 42 127 118 13 575 18 115 16 22 62 10 22 23 24 34 35 . 102 65 74 Core Hits 1126 | 4 25 8 28 63 81 92 12 53 45 5 299 10 36 . 10 23 4 7 14 39 38 10 . 78 29 113 Critical Kills 45 | . . . 1 4 3 3 . 1 1 . 1 . 6 . 1 . 1 1 3 . 6 . . . 12 1 Critical Parts Destroyed 73 | . . . . 5 3 9 . 1 1 . 3 1 9 . 1 2 . 2 . 1 2 . . . 30 3 Critical Strikes 150 | 2 1 2 2 9 6 12 . 2 2 . 11 1 18 . 2 6 1 3 4 2 8 . . 3 43 10 Burn 7 | 2 1 1 1 . . . . . . . . . . . . . . . 1 1 . . . . . . Destroy 122 | . . . 1 9 6 12 . 2 2 . 4 1 18 . 2 2 1 3 3 1 8 . . . 43 4 Blast 8 | . . 1 . . . . . . . . 7 . . . . . . . . . . . . . . . Sever 13 | . . . . . . . . . . . . . . . . 4 . . . . . . . 3 . 6 Melee Attacks 184 | . . . 17 . 28 7 9 17 2 4 17 . 4 10 . 30 . . . 6 1 1 . 7 7 17 Impact . | . . . . . . . . . . . . . . . . . . . . . . . . . . . Slashing 141 | . . . 17 . 28 1 8 15 2 . 11 . . 10 . 17 . . . . . 1 . 7 7 17 Piercing . | . . . . . . . . . . . . . . . . . . . . . . . . . . . Sneak Attacks 40 | . . . . . . 5 . 2 . 2 7 . 4 . . 13 . . . 6 . . . 1 . . Combat Hostiles 16 | . . . . . . . . 1 . . . . . . . 8 . . . 6 . . . 1 . . Follow-up Attacks . | . . . . . . . . . . . . . . . . . . . . . . . . . . . Damage Inflicted 53955 | 104 677 474 1474 3068 2438 4205 607 2584 2462 213 16917 422 2507 . 601 1474 241 634 615 1062 1379 384 . 2816 1304 5293 Guns 32380 | 104 579 66 212 2983 1904 3605 607 1915 2381 186 10590 422 2490 . 537 711 241 555 437 249 129 384 . 1093 . . Cannons 10264 | . 65 183 217 . . . . . . . 5734 . . . . . . 79 178 172 491 . . . 1304 1841 Explosions 9286 | . . 221 1045 . 477 540 . 435 . . 487 . . . . 187 . . . 634 753 . . 1489 . 3018 Melee 1438 | . . . . . . . . 124 . . 106 . . . . 549 . . . . . . . 234 . 425 Ramming 530 | . 33 4 . 85 . 60 . 110 81 27 . . 17 . 64 27 . . . 7 6 . . . . 9 Kinetic 39004 | 41 279 183 1279 2553 1904 3605 607 1915 2381 186 15891 422 2490 . 537 711 241 634 488 288 327 . . . 1304 738 Thermal 3430 | 63 365 66 195 430 57 . . . . . 433 . . . . . . . 127 133 293 . . 165 . 1103 Explosive 8076 | . . 221 . . 477 540 . 435 . . 487 . . . . 187 . . . 634 753 . . 1324 . 3018 Electromagnetic 1477 | . . . . . . . . . . . . . . . . . . . . . . 384 . 1093 . . Impact . | . . . . . . . . . . . . . . . . . . . . . . . . . . . Slashing 1438 | . . . . . . . . 124 . . 106 . . . . 549 . . . . . . . 234 . 425 Piercing . | . . . . . . . . . . . . . . . . . . . . . . . . . . . Highest Corruption 98 | . 1 1 1 3 3 8 8 4 . . 3 1 2 2 2 98 2 2 2 31 31 . . . 4 18 Average Corruption 5 | . 1 1 1 2 3 5 8 3 . . 2 1 1 2 1 38 2 2 1 10 31 . . . 2 9 Corruption Purged 8 | . . . . . . . . 4 . . . . . . 2 . . . 2 . . . . . . . Corruption Blocked . | . . . . . . . . . . . . . . . . . . . . . . . . . . . Effects 405 | . 2 9 24 13 46 54 25 7 . . 9 2 29 3 7 44 2 11 4 4 45 . . . 16 49 Message Errors 91 | . 1 2 6 2 10 13 2 1 . . 1 1 8 2 2 14 1 1 . . 6 . . . 5 13 Matter Fused 104 | . . . 8 2 15 13 10 3 . . 2 . 10 1 1 8 1 6 2 1 8 . . . 4 9 Heat Flow Errors 46 | . 1 1 3 1 6 6 4 . . . . . 6 . 1 5 . . . . 2 . . . 1 9 Energy Discharges 51 | . . 3 1 2 4 6 5 . . . 4 . 3 . 1 3 . 1 1 . 9 . . . . 8 Parts Rejected 3 | . . . . . . . . . . . 1 . . . . . . . . 1 . . . . 1 . Parts Fused 5 | . . . 1 . 2 1 . . . . . . . . . 1 . . . . . . . . . . Data Loss (minor) 43 | . . 1 2 3 5 6 2 1 . . . . 1 . 1 3 . 1 1 1 6 . . . 4 5 Data Loss (major) 11 | . . . . 2 2 2 . 1 . . . . . . . 1 . . . . 2 . . . . 1 Misfires 15 | . . 2 1 . . 1 . 1 . . . 1 1 . . 1 . 1 . . 2 . . . 1 3 Alerts 14 | . . . 2 . . 1 2 . . . . . . . . 3 . 1 . . 4 . . . . 1 Misdirections 4 | . . . . . . . . . . . . . . . . 2 . . . 1 1 . . . . . Weapon Failures 18 | . . . . 1 2 5 . . . . 1 . . . 1 3 . . . . 5 . . . . . Overload Shots . | . . . . . . . . . . . . . . . . . . . . . . . . . . . Overflow Damage 1108 | . . 60 18 . 11 2 . . . . 845 . . . 4 . . . . 5 11 . . 3 6 143 Projectiles 907 | . . 2 . . . . . . . . 772 . . . . . . . . . . . . . 6 127 Explosions 131 | . . 58 18 . 11 2 . . . . 7 . . . . . . . . 5 11 . . 3 . 16 Melee 70 | . . . . . . . . . . . 66 . . . 4 . . . . . . . . . . . Knockbacks 42 | . . 1 2 1 . . . 2 . . 19 . . . . 1 . . 2 . . . . . 11 3 Impact 5 | . . 1 . 1 . . . 2 . . . . . . . 1 . . . . . . . . . . Kinetic 29 | . . . 2 . . . . . . . 13 . . . . . . . 2 . . . . . 9 3 Secondary 8 | . . . . . . . . . . . 6 . . . . . . . . . . . . . 2 . Self-Inflicted Damage 941 | . . 39 15 . 52 . . . . . . . . . . 66 . . . 70 31 . . 140 . 528 Shots 46 | . . 2 2 . 3 . . . . . . . . . . 3 . . . 4 2 . . 7 . 23 Rammed 51 | . 5 1 . 10 . 6 . 10 10 2 . . 1 . 1 1 . . . 1 1 . . . . 2 Targets Rammed 61 | . 6 1 . 14 . 7 . 11 12 2 . . 1 . 2 1 . . . 1 1 . . . . 2 Kicked . | . . . . . . . . . . . . . . . . . . . . . . . . . . . Crushed 10 | . 1 . . 4 . 1 . 1 2 . . . . . 1 . . . . . . . . . . . Highest Temperature 501 | 40 205 208 194 258 257 247 209 46 22 . 321 66 281 11 187 279 38 294 308 330 406 194 . 501 299 197 Average Temperature 64 | 19 59 78 103 64 50 33 55 11 5 . 62 27 77 11 67 75 18 90 97 75 114 98 . 82 78 74 Received Heat Transfer 6126 | . 165 . 78 423 393 792 162 321 167 16 958 . 164 36 . 162 . 163 109 391 207 30 . 571 683 135 Effects 4 | . . . . . . . . . . . 1 . . . . . . . . . 1 . . 2 . . Shutdowns 1 | . . . . . . . . . . . . . . . . . . . . . 1 . . . . . Energy Bleed 1 | . . . . . . . . . . . 1 . . . . . . . . . . . . . . . Matter Decay 2 | . . . . . . . . . . . . . . . . . . . . . . . . 2 . . Siege Activations 6 | . . . . . . . . . . . 1 . . . . . . . . . . . . 2 1 2 Total Turns 350 | . . . . . . . . . . . 195 . . . . . . . . . . . . 62 47 46 Longest Duration 195 | . . . . . . . . . . . 195 . . . . . . . . . . . . 46 47 37 Robots Corrupted 5 | . . . . . . . . . . . . . . . 1 . . . . . . . . 4 . . Combat Hostiles 4 | . . . . . . . . . . . . . . . . . . . . . . . . 4 . . Parts Fried 13 | . . . . . . . . 1 . . 1 . . . 3 . . . . . . . . 8 . . Impact Corruptions 6 | . . . . . . . . . . . 5 . . . 1 . . . . . . . . . . . Robots Melted 2 | . . . . . . . . . . . 1 . . . . . . . . . . . . . . 1 Combat Hostiles 2 | . . . . . . . . . . . 1 . . . . . . . . . . . . . . 1 Parts Melted 30 | . . . . . . . . . . . 18 . . . . . . . . . 1 . . . . 11 Heat Transferred 6496 | 333 1147 259 446 500 200 . . . . . 875 . . . . . . . 296 242 448 . . 100 . 1650 Parts Sabotaged . | . . . . . . . . . . . . . . . . . . . . . . . . . . . Parts Stolen 3 | . . . . . . . . . . . 3 . . . . . . . . . . . . . . . Parts Stripped . | . . . . . . . . . . . . . . . . . . . . . . . . . . . Power Chain Reactions 1 | . . . . . . . . . . . . . . . . . . . . . . . . 1 . . Alert | -11 -10 -10 -10 -8 -8 -8 -8 -7 -7 -7 -7 -5 -5 -5 -5 -5 -4 -4 -4 -4 -3 -3 -3 -3 -2 -2 ------- Run | Yrd Mat Min Sub Mat Gar Mat Gar Fac Sto Rec Scr Fac Ext Cet Arc Hub Fac Upp Upp War Pro Res Tes Gar Res Qua Peak Influence 1518 | 15 238 174 . 462 1518 823 509 286 457 172 . 154 418 219 202 1181 1004 . . . . 83 15 938 924 615 Initial 739 | . 9 12 . . 269 739 317 266 79 159 . . 74 180 14 . 578 . . . . . . 11 483 491 Average 320 | 4 91 54 . 261 859 434 444 155 267 43 . 47 172 181 78 544 759 . . . . 54 1 578 742 450 Maximum Alert Level 4 | . 1 . . 2 4 3 2 1 2 . . . 2 1 1 4 3 . . . . . . 3 3 2 Low Security (%) 48 | 100 99 100 . 20 . 24 . 80 37 100 . 100 72 68 80 17 . . . . . 100 100 10 . 9 Level 1 21 | . . . . 74 20 19 23 19 49 . . . 26 31 19 2 . . . . . . . 16 . 17 Level 2 17 | . . . . 4 21 39 76 . 13 . . . 1 . . 55 32 . . . . . . 38 28 73 Level 3 8 | . . . . . 17 16 . . . . . . . . . 18 67 . . . . . . 34 71 . Level 4 3 | . . . . . 40 . . . . . . . . . . 6 . . . . . . . . . . Level 5 . | . . . . . . . . . . . . . . . . . . . . . . . . . . . High Security . | . . . . . . . . . . . . . . . . . . . . . . . . . . . Max Security . | . . . . . . . . . . . . . . . . . . . . . . . . . . . Squads Dispatched 55 | . 1 . . 5 . 7 . 8 6 . . 4 3 . . 7 2 . . . . 1 . . 7 4 Investigation 8 | . . . . 1 . 1 . 1 1 . . . 1 . . 1 . . . . . . . . . 2 Extermination 14 | . . . . . . . . 3 4 . . 2 . . . 1 1 . . . . . . . 2 1 Reinforcement 24 | . 1 . . 3 . 3 . 4 1 . . 2 2 . . 4 1 . . . . 1 . . 2 . Assault 7 | . . . . . . 2 . . . . . . . . . 1 . . . . . . . . 3 1 Garrison 2 | . . . . 1 . 1 . . . . . . . . . . . . . . . . . . . . Intercept . | . . . . . . . . . . . . . . . . . . . . . . . . . . . Searches Triggered . | . . . . . . . . . . . . . . . . . . . . . . . . . . . Construction Impeded 3 | . . . . . . . . 1 . . . 1 . . . . . . . . . . . . 1 . Haulers Reinforced 2 | . . . . . . . . . 1 . . . . . . . 1 . . . . . . . . . Active Scanning Responses . | . . . . . . . . . . . . . . . . . . . . . . . . . . . Cargo Convoy Interrupts . | . . . . . . . . . . . . . . . . . . . . . . . . . . . Stealth | -11 -10 -10 -10 -8 -8 -8 -8 -7 -7 -7 -7 -5 -5 -5 -5 -5 -4 -4 -4 -4 -3 -3 -3 -3 -2 -2 --------- Run | Yrd Mat Min Sub Mat Gar Mat Gar Fac Sto Rec Scr Fac Ext Cet Arc Hub Fac Upp Upp War Pro Res Tes Gar Res Qua Distress Signals 25 | . 1 . . 4 1 5 . 1 2 . 3 . 3 2 . 3 . . . . . . . . . . Communications Jammed . | . . . . . . . . . . . . . . . . . . . . . . . . . . . Distress Signals . | . . . . . . . . . . . . . . . . . . . . . . . . . . . Times Spotted 688 | . 22 8 23 49 34 58 8 31 28 4 117 11 35 10 7 44 5 16 12 31 28 8 1 32 24 42 Peak Tracking Total 15 | . 5 3 6 5 7 5 3 7 4 3 10 4 5 5 1 7 1 6 5 15 11 3 1 6 6 7 Tactical Retreats 28 | . 1 . 2 2 3 5 . 1 1 . 1 1 2 . . 2 . 1 . . . . . 2 4 . Traps | -11 -10 -10 -10 -8 -8 -8 -8 -7 -7 -7 -7 -5 -5 -5 -5 -5 -4 -4 -4 -4 -3 -3 -3 -3 -2 -2 ------- Run | Yrd Mat Min Sub Mat Gar Mat Gar Fac Sto Rec Scr Fac Ext Cet Arc Hub Fac Upp Upp War Pro Res Tes Gar Res Qua Traps Triggered 42 | . 3 . 2 4 8 . 3 3 . . . . 4 . . . 1 . . . . . . 3 5 6 Indirectly . | . . . . . . . . . . . . . . . . . . . . . . . . . . . Trap Hack Attempts 123 | . . . . 5 . 101 . . . . . . 17 . . . . . . . . . . . . . Triggered . | . . . . . . . . . . . . . . . . . . . . . . . . . . . Disarmed 3 | . . . . 1 . 2 . . . . . . . . . . . . . . . . . . . . Reprogrammed 9 | . . . . 1 . 4 . . . . . . 4 . . . . . . . . . . . . . Reused 6 | . . . . 1 . 2 . . . . 2 . 1 . . . . . . . . . . . . . Traps Extracted 4 | . . . . . . . . . . . . . 4 . . . . . . . . . . . . . Installed 9 | . . . 1 . . . . . . . 3 . 2 . . . . . . . . . . . 3 . Triggered 5 | . . . . 1 . 2 . . . . . . 1 . . . . . . . 1 . . . . . Most Traps Carried 3 | . . . 1 . . . . . . . 2 1 3 3 3 3 3 3 3 3 3 3 3 3 3 . Machines | -11 -10 -10 -10 -8 -8 -8 -8 -7 -7 -7 -7 -5 -5 -5 -5 -5 -4 -4 -4 -4 -3 -3 -3 -3 -2 -2 ---------- Run | Yrd Mat Min Sub Mat Gar Mat Gar Fac Sto Rec Scr Fac Ext Cet Arc Hub Fac Upp Upp War Pro Res Tes Gar Res Qua Machines Disabled 65 | . . . 4 . 3 3 1 . 7 . 13 . 2 1 2 10 3 1 . . 4 . . 4 1 6 Max in Single Turn 3 | . . . 3 . 1 1 1 . 1 . 1 . . 1 . 1 . . . . 1 . . 1 . 1 Garrison Access 5 | . . . . . . . . 2 . . . . . . . 1 . . . . . 1 . . 1 . Garrison Relay 5 | . . . . . 2 . 1 . . . . . . . . . . . . . . . . 2 . . Network Hub 1 | . . . . . . . . . . . . . . . . 1 . . . . . . . . . . Machines Repaired . | . . . . . . . . . . . . . . . . . . . . . . . . . . . Machines Dismantled 3 | . . . . . . . . . 2 . . . . 1 . . . . . . . . . . . . Machines Sabotaged . | . . . . . . . . . . . . . . . . . . . . . . . . . . . Overloaded Fab Kills . | . . . . . . . . . . . . . . . . . . . . . . . . . . . Hacking | -11 -10 -10 -10 -8 -8 -8 -8 -7 -7 -7 -7 -5 -5 -5 -5 -5 -4 -4 -4 -4 -3 -3 -3 -3 -2 -2 --------- Run | Yrd Mat Min Sub Mat Gar Mat Gar Fac Sto Rec Scr Fac Ext Cet Arc Hub Fac Upp Upp War Pro Res Tes Gar Res Qua Machines Accessed 99 | . 9 . 2 15 3 10 1 7 10 8 1 1 11 1 . 3 2 . 1 . . 3 1 3 2 5 Terminals 67 | . 7 . . 9 3 6 1 4 7 6 . 1 9 1 . 2 1 . 1 . . 3 . 3 . 3 Fabricators 1 | . . . . . . . . . . . . . . . . . . . . . . . . . 1 . Repair Stations 9 | . 1 . . 2 . 2 . 1 2 . . . . . . . . . . . . . . . . 1 Recycling Units 10 | . 1 . . 2 . 1 . . 1 2 . . 2 . . . 1 . . . . . . . . . Scanalyzers 2 | . . . . 1 . . . . . . . . . . . . . . . . . . . . . 1 Garrison Access 7 | . . . . 1 . 1 . 2 . . . . . . . 1 . . . . . . 1 . 1 . Total Hacks 289 | . 25 . 5 63 6 29 3 17 18 22 1 1 29 2 . 7 9 . 4 . . 20 3 7 5 13 Successful 137 | . 12 . 5 34 . 13 1 5 11 7 1 1 16 . . 4 4 . 4 . . 7 1 2 2 7 Failed 150 | . 13 . . 29 6 16 2 12 7 14 . . 13 2 . 3 5 . . . . 12 2 5 3 6 Catastrophic 40 | . 3 . . 4 3 2 1 5 3 4 . . 3 1 . 1 2 . . . . 5 . 2 . 1 Database Lockouts 2 | . . . . . . . . . . 1 . . . . . . . . . . . 1 . . . . Manual 140 | . 14 . . 33 6 16 1 8 7 11 . . 10 1 . 4 . . . . . 11 2 7 1 8 Terminals 203 | . 21 . . 35 6 19 3 14 12 17 . 1 24 2 . 5 5 . 4 . . 20 . 7 . 8 Fabricators 3 | . . . . . . . . . . . . . . . . . . . . . . . . . 3 . Repair Stations 31 | . 3 . . 13 . 6 . 1 4 . . . . . . . . . . . . . . . . 4 Recycling Units 23 | . 1 . . 4 . 2 . . 2 5 . . 5 . . . 4 . . . . . . . . . Scanalyzers 8 | . . . . 7 . . . . . . . . . . . . . . . . . . . . . 1 Garrison Access 15 | . . . . 4 . 2 . 2 . . . . . . . 2 . . . . . . 3 . 2 . Terminal Hacks 75 | . 8 . 5 11 . 6 1 3 4 3 1 1 11 . . 2 3 . 4 . . 6 . 2 . 4 Record 8 | . . . 4 . . . . . . . . . . . . . . . 4 . . . . . . . Part Schematic 3 | . . . . . . . . . . 1 . . . . . . . . . . . 2 . . . . Robot Schematic 1 | . . . . 1 . . . . . . . . . . . . . . . . . . . . . . Robot Analysis 14 | . 4 . . 5 . . . . . 2 . . 1 . . . 1 . . . . 1 . . . . Prototype ID Bank 4 | . 1 . . 1 . 1 . . . . . . . . . . . . . . . 1 . . . . Open Door 8 | . . . . . . . . . 2 . . 1 5 . . . . . . . . . . . . . Branch Access Points 3 | . . . . . . . . 1 . . . . . . . . 1 . . . . 1 . . . . Terminal Index 2 | . . . . . . . . . . . . . . . . 1 . . . . . 1 . . . . Unreport Threat 10 | . . . . 1 . 2 . . . . . . 3 . . 1 . . . . . . . 1 . 2 Locate Traps 10 | . 1 . . 3 . 2 . 2 1 . . . 1 . . . . . . . . . . . . . Recall Investigation 1 | . . . . . . . . . . . . . . . . . . . . . . . . . . 1 Recall Reinforcements 1 | . . . . . . . . . . . . . . . . . 1 . . . . . . . . . Hauler Manifests 1 | . 1 . . . . . . . . . . . . . . . . . . . . . . . . . Registered Components 1 | . . . . . . . . . . . . . . . . . . . . . . . . . . 1 Zone Layout 4 | . 1 . . . . 1 . . 1 . . . 1 . . . . . . . . . . . . . Garrison Registry 2 | . . . . . . . 1 . . . . . . . . . . . . . . . . 1 . . Derelict Proto ID Bank 2 | . . . 1 . . . . . . . 1 . . . . . . . . . . . . . . . Fabricator Hacks . | . . . . . . . . . . . . . . . . . . . . . . . . . . . Repair Station Hacks 24 | . 3 . . 12 . 4 . . 4 . . . . . . . . . . . . . . . . 1 Scan Component 12 | . 1 . . 6 . 2 . . 2 . . . . . . . . . . . . . . . . 1 Repair 11 | . 1 . . 6 . 2 . . 2 . . . . . . . . . . . . . . . . . Refit 1 | . 1 . . . . . . . . . . . . . . . . . . . . . . . . . Recycling Unit Hacks 4 | . . . . 1 . . . . . 1 . . 1 . . . 1 . . . . . . . . . Retrieve Components 4 | . . . . 1 . . . . . 1 . . 1 . . . 1 . . . . . . . . . Scanalyzer 6 | . . . . 6 . . . . . . . . . . . . . . . . . . . . . . Insert Component 3 | . . . . 3 . . . . . . . . . . . . . . . . . . . . . . Analyze 3 | . . . . 3 . . . . . . . . . . . . . . . . . . . . . . Garrison Access Hacks 8 | . . . . 1 . 1 . 2 . . . . . . . 2 . . . . . . 1 . 1 . Unlock Access 4 | . . . . 1 . 1 . . . . . . . . . . . . . . . . 1 . 1 . Seal Access 3 | . . . . . . . . 2 . . . . . . . 1 . . . . . . . . . . Coupler Status 1 | . . . . . . . . . . . . . . . . 1 . . . . . . . . . . Unauthorized Hacks 20 | . 1 . . 3 . 2 . . 3 3 . . 4 . . . . . . . . 1 . . 1 2 Terminals 9 | . 1 . . 1 . 1 . . 1 1 . . 2 . . . . . . . . 1 . . . 1 Botnet 6 | . . . . 1 . 1 . . 1 1 . . 1 . . . . . . . . 1 . . . . Disrupt 2 | . . . . . . . . . . . . . 1 . . . . . . . . . . . . 1 Skim 1 | . 1 . . . . . . . . . . . . . . . . . . . . . . . . . Fabricators . | . . . . . . . . . . . . . . . . . . . . . . . . . . . Repair Stations . | . . . . . . . . . . . . . . . . . . . . . . . . . . . Recycling Units 7 | . . . . 1 . . . . 2 2 . . 2 . . . . . . . . . . . . . Reject 5 | . . . . 1 . . . . 1 2 . . 1 . . . . . . . . . . . . . Mask 2 | . . . . . . . . . 1 . . . 1 . . . . . . . . . . . . . Scanalyzers 1 | . . . . . . . . . . . . . . . . . . . . . . . . . . 1 Researchers 1 | . . . . . . . . . . . . . . . . . . . . . . . . . . 1 Garrison Access 3 | . . . . 1 . 1 . . . . . . . . . . . . . . . . . . 1 . Reprogram 3 | . . . . 1 . 1 . . . . . . . . . . . . . . . . . . 1 . Data Cores Recovered 1 | . . . . . . . . . 1 . . . . . . . . . . . . . . . . . Used . | . . . . . . . . . . . . . . . . . . . . . . . . . . . Hacking Detections 66 | . 8 . . 13 . 5 . 5 7 6 . . 8 1 . 2 2 . 1 . . 3 1 . 1 3 Full Trace Events 9 | . 1 . . . 2 . . 1 1 1 . . 1 . . . . . . . . . . 1 . 1 Feedback Events 2 | . . . . . . . . 1 . . . . . . . . . . . . . . . . . 1 Corruption 2 | . . . . . . . . 1 . . . . . . . . . . . . . . . . . 1 Feedback Blocked . | . . . . . . . . . . . . . . . . . . . . . . . . . . . Robot Schematics Acquired 1 | . . . . 1 . . . . . . . . . . . . . . . . . . . . . . Robots Built . | . . . . . . . . . . . . . . . . . . . . . . . . . . . Authchips . | . . . . . . . . . . . . . . . . . . . . . . . . . . . Time . | . . . . . . . . . . . . . . . . . . . . . . . . . . . Total Robot Build Rating . | . . . . . . . . . . . . . . . . . . . . . . . . . . . Part Schematics Acquired 5 | . . . . 2 . . . . . 1 . . . . . . . . . . . 2 . . . . Parts Built . | . . . . . . . . . . . . . . . . . . . . . . . . . . . Authchips . | . . . . . . . . . . . . . . . . . . . . . . . . . . . Time . | . . . . . . . . . . . . . . . . . . . . . . . . . . . Total Part Build Rating . | . . . . . . . . . . . . . . . . . . . . . . . . . . . Parts Repaired 11 | . 1 . . 6 . 2 . . 2 . . . . . . . . . . . . . . . . . Time 390 | . 26 . . 230 . 102 . . 32 . . . . . . . . . . . . . . . . . Parts Recycled . | . . . . . . . . . . . . . . . . . . . . . . . . . . . Recycled Matter . | . . . . . . . . . . . . . . . . . . . . . . . . . . . Retrieved Matter . | . . . . . . . . . . . . . . . . . . . . . . . . . . . Retrieved Components 16 | . . . . 8 . . . . . 3 . . 2 . . . 3 . . . . . . . . . Parts Scanalyzed 3 | . . . . 3 . . . . . . . . . . . . . . . . . . . . . . Part Schematics Acquired 2 | . . . . 2 . . . . . . . . . . . . . . . . . . . . . . Parts Damaged . | . . . . . . . . . . . . . . . . . . . . . . . . . . . Bothacking | -11 -10 -10 -10 -8 -8 -8 -8 -7 -7 -7 -7 -5 -5 -5 -5 -5 -4 -4 -4 -4 -3 -3 -3 -3 -2 -2 ------------ Run | Yrd Mat Min Sub Mat Gar Mat Gar Fac Sto Rec Scr Fac Ext Cet Arc Hub Fac Upp Upp War Pro Res Tes Gar Res Qua Used RIF Installer 3 | . . . . . 1 . 1 . . . . . . . . . . . . . . . . 1 . . Watcher Feeds 1 | . . . . . . . . . . . . . . . . . . . . . . . . 1 . . Program Shield 1 | . . . . . . . 1 . . . . . . . . . . . . . . . . . . . Robots Hacked 32 | . . . . . . 2 1 5 4 4 6 . 1 2 . 2 . . . . 4 1 . . . . Non-combat 12 | . . . . . . 1 . 4 4 2 1 . . . . . . . . . . . . . . . Combat 20 | . . . . . . 1 1 1 . 2 5 . 1 2 . 2 . . . . 4 1 . . . . Robot Hacks Applied 40 | . . . . . . 6 1 7 4 4 6 . 1 2 . 3 . . . . 5 1 . . . . parse_system 15 | . . . . . . . . . . 1 6 . 1 2 . 3 . . . . 1 1 . . . . deconstruct_machine 4 | . . . . . . . . 4 . . . . . . . . . . . . . . . . . . drop_inventory 4 | . . . . . . . . 1 3 . . . . . . . . . . . . . . . . . find_recycling 1 | . . . . . . . . . . 1 . . . . . . . . . . . . . . . . purge_threat 4 | . . . . . . 4 . . . . . . . . . . . . . . . . . . . . disrupt_area 1 | . . . . . . . . . . . . . . . . . . . . . 1 . . . . . overload_power 1 | . . . . . . . . . . . . . . . . . . . . . 1 . . . . . amplify_resonance 1 | . . . . . . . . . . . . . . . . . . . . . 1 . . . . . overwrite_iff 2 | . . . . . . . . . . 1 . . . . . . . . . . 1 . . . . . formatsys_low 3 | . . . . . . 1 . 1 1 . . . . . . . . . . . . . . . . . formatsys_high 4 | . . . . . . 1 1 1 . 1 . . . . . . . . . . . . . . . . Relay Couplers Released 34 | . . . . . 9 . 4 6 . . . . . . . 1 . . . . . . . 9 2 3 Machine Destruction 27 | . . . . . 9 . 4 2 . . . . . . . 1 . . . . . . . 9 2 . Programmers 7 | . . . . . . . . 4 . . . . . . . . . . . . . . . . . 3 Attached 12 | . . . . . 2 3 1 3 1 1 . . . . . . . . . . 1 . . . . . Fabnet Peak Effective % . | . . . . . . . . . . . . . . . . . . . . . . . . . . . Robots Rewired 50 | . . . . . 4 . . 1 . . . . 18 8 . 7 1 1 . 4 1 . . 5 . . Allies Hacked . | . . . . . . . . . . . . . . . . . . . . . . . . . . . Hacks Repelled . | . . . . . . . . . . . . . . . . . . . . . . . . . . . Allies | -11 -10 -10 -10 -8 -8 -8 -8 -7 -7 -7 -7 -5 -5 -5 -5 -5 -4 -4 -4 -4 -3 -3 -3 -3 -2 -2 -------- Run | Yrd Mat Min Sub Mat Gar Mat Gar Fac Sto Rec Scr Fac Ext Cet Arc Hub Fac Upp Upp War Pro Res Tes Gar Res Qua Total Allies 82 | . . 2 . 2 4 3 1 6 1 2 1 . 26 13 1 7 1 1 . 4 2 . . 5 . . Largest Group 28 | . . 2 . 2 4 1 1 3 2 3 2 2 16 28 27 23 8 8 8 7 2 . . 2 2 . Highest-Rated Group 1626 | . . 43 . 48 63 26 21 93 62 87 142 142 605 1626 1530 1386 619 619 562 515 156 . . 170 170 . Highest-Rated Ally 159 | . . 31 . 24 24 26 21 32 31 32 119 119 159 159 159 113 109 109 109 131 116 . . 99 85 . Total Orders 91 | . . . . . . . . 5 10 5 13 8 13 15 4 4 . . 2 4 . . . 2 6 . STAY 47 | . . . . . . . . 4 6 3 10 1 3 11 2 1 . . 1 2 . . . 1 2 . FOLLOW 30 | . . . . . . . . . 2 2 2 4 4 4 2 2 . . 1 2 . . . 1 4 . AID 14 | . . . . . . . . 1 2 . 1 3 6 . . 1 . . . . . . . . . . Ally Attacks 912 | . . 23 . . 13 2 9 39 62 4 9 92 226 9 38 168 20 46 27 34 11 . . 51 29 . Total Damage 22589 | . . 263 . . 175 . 160 639 765 135 334 364 3950 381 1126 6328 751 2060 863 1331 233 . . 1315 1416 . Kills 141 | . . 2 . . 1 . 1 5 9 1 2 3 25 2 5 40 6 15 5 6 . . . 6 7 . Allies Corrupted 18 | . . . . . . . . 1 . . . . 1 . . 15 . . . 1 . . . . . . Allies Melted 1 | . . . . . . . . . . . . . . . . . . . . 1 . . . . . . Intel | -11 -10 -10 -10 -8 -8 -8 -8 -7 -7 -7 -7 -5 -5 -5 -5 -5 -4 -4 -4 -4 -3 -3 -3 -3 -2 -2 ------- Run | Yrd Mat Min Sub Mat Gar Mat Gar Fac Sto Rec Scr Fac Ext Cet Arc Hub Fac Upp Upp War Pro Res Tes Gar Res Qua Robot Analysis Total 14 | . 4 . . 5 . . . . . 2 . . 1 . . . 1 . . . . 1 . . . . Derelict Logs Recovered 7 | . . 1 1 . . . . . . . . . . . . . . 3 2 . . . . . . . Drone Launches . | . . . . . . . . . . . . . . . . . . . . . . . . . . . Drone Recoveries . | . . . . . . . . . . . . . . . . . . . . . . . . . . . Exploration | -11 -10 -10 -10 -8 -8 -8 -8 -7 -7 -7 -7 -5 -5 -5 -5 -5 -4 -4 -4 -4 -3 -3 -3 -3 -2 -2 ------------- Run | Yrd Mat Min Sub Mat Gar Mat Gar Fac Sto Rec Scr Fac Ext Cet Arc Hub Fac Upp Upp War Pro Res Tes Gar Res Qua Turns Passed 50413 | 182 1367 909 3443 2411 2242 2356 841 3303 2494 2144 13341 515 2211 438 987 1025 374 1312 2111 1437 838 403 75 1225 1082 1347 Spaces Moved 19727 | 92 727 541 1890 1066 766 697 297 1105 857 859 4327 238 949 196 483 404 205 779 1095 239 358 192 42 542 384 397 Core 46 | 5 . . . . . . . . . . . . . . . . . . . 41 . . . . . . Treads 19548 | 87 727 541 1890 1066 766 697 297 1105 857 859 4327 238 949 196 483 404 205 779 1095 198 358 192 42 542 384 264 Legs 113 | . . . . . . . . . . . . . . . . . . . . . . . . . . 113 Wheels 20 | . . . . . . . . . . . . . . . . . . . . . . . . . . 20 Hover . | . . . . . . . . . . . . . . . . . . . . . . . . . . . Flight . | . . . . . . . . . . . . . . . . . . . . . . . . . . . Fastest Speed 50 | 50 160 160 160 160 163 163 240 240 242 243 160 160 160 160 160 160 160 160 160 160 160 163 163 163 166 165 Average Speed 202 | 154 160 160 160 161 216 241 240 240 244 243 231 160 160 160 160 198 160 160 160 570 190 163 163 163 208 237 Slowest Speed 2550 | 160 160 160 160 250 243 243 240 242 245 243 243 160 160 180 160 220 160 160 160 2550 245 163 163 166 250 400 Overloaded Moves . | . . . . . . . . . . . . . . . . . . . . . . . . . . . Propulsion Burnouts . | . . . . . . . . . . . . . . . . . . . . . . . . . . . Robots Hopped . | . . . . . . . . . . . . . . . . . . . . . . . . . . . Cave-ins Triggered . | . . . . . . . . . . . . . . . . . . . . . . . . . . . Teleports 2 | . . . . . . . . . . . . . . . . . . . . . . . . . . 2 Exploration Rate (%) 58 | 5 96 89 98 88 79 71 45 30 91 98 93 7 86 65 80 50 7 93 93 17 60 7 9 67 10 42 Regions Visited 26 Branch Regions 15 Pre-discovered Areas 4 | . . 1 2 . . . . . . . . . . . . . . . 1 . . . . . . . Known Exits Taken 9 | . . . . 1 . 1 . 1 1 1 . . . . . . 1 . . . . 1 1 . 1 . Unknown Exits Taken 14 | 1 1 1 1 . . . . . . . 1 1 1 1 1 1 . 1 1 1 1 . . . . . Scrap Searched 26 | . . 1 12 . . . . . . . 5 . . . . . . 3 3 . 2 . . . . . Spaces Dug 151 | . . 6 61 . 20 1 1 2 . . 3 . 24 10 . . . . 4 . . 1 . 1 6 11 Terrain Destroyed 859 | . . 15 168 3 55 9 1 16 . . 58 2 26 10 6 50 3 8 16 34 91 1 . 108 7 172 Melee 42 | . . . 1 . 14 1 1 2 . . 3 . . 10 . . . . . . . 1 . 1 6 2 Projectile 86 | . . . . 3 . . . . . . 2 2 2 . 6 7 3 8 16 2 15 . . . . 20 AOE 730 | . . 15 167 . 41 8 . 14 . . 53 . 24 . . 43 . . . 32 76 . . 107 . 150 Terrain Rammed . | . . . . . . . . . . . . . . . . . . . . . . . . . . . Walls Destroyed . | . . . . . . . . . . . . . . . . . . . . . . . . . . . Machines Disabled . | . . . . . . . . . . . . . . . . . . . . . . . . . . . Actions | -11 -10 -10 -10 -8 -8 -8 -8 -7 -7 -7 -7 -5 -5 -5 -5 -5 -4 -4 -4 -4 -3 -3 -3 -3 -2 -2 --------- Run | Yrd Mat Min Sub Mat Gar Mat Gar Fac Sto Rec Scr Fac Ext Cet Arc Hub Fac Upp Upp War Pro Res Tes Gar Res Qua Total 27437 | 117 849 557 2219 1581 1145 1113 370 1557 1092 902 7066 355 1526 282 681 540 240 812 1416 296 460 247 51 751 566 646 Wait 4660 | 5 44 . 200 322 192 117 19 223 70 18 2207 84 341 34 136 23 5 3 285 28 17 6 . 91 92 98 Move 19701 | 91 726 540 1889 1065 765 696 296 1104 856 858 4326 237 948 195 482 403 204 778 1094 238 357 191 41 541 383 397 Hop . | . . . . . . . . . . . . . . . . . . . . . . . . . . . Pick Up 291 | 8 9 . 17 29 7 18 2 15 13 3 74 6 5 1 21 6 4 1 4 3 9 7 4 8 9 8 Fast Attach 143 | 6 5 . 3 17 2 8 . 12 9 2 15 4 3 2 2 6 . 2 3 1 6 5 . 5 7 18 Attach 104 | . 2 . . 4 4 9 2 9 . . 22 2 1 1 . 2 2 1 1 3 11 1 . 5 3 19 Detach 51 | . 1 . . 2 4 3 . 2 2 . 12 2 . 1 1 1 . . 3 . 5 3 . 2 1 6 Swap 366 | . 3 2 31 12 21 29 12 46 38 7 42 4 20 7 3 20 2 2 2 5 10 7 2 21 15 3 Drop 281 | . 9 . 20 30 4 9 2 20 22 3 72 7 8 2 22 9 2 2 4 2 5 6 4 8 6 3 Fire 1186 | 7 44 14 41 81 83 105 19 68 53 4 275 9 50 21 11 30 5 14 20 9 38 20 . 55 36 74 Melee 184 | . . . 17 . 28 7 9 17 2 4 17 . 4 10 . 30 . . . 6 1 1 . 7 7 17 Ram . | . . . . . . . . . . . . . . . . . . . . . . . . . . . Kick . | . . . . . . . . . . . . . . . . . . . . . . . . . . . Crush 61 | . 6 1 . 14 . 7 . 11 12 2 . . 1 . 2 1 . . . 1 1 . . . . 2 Escape Stasis 26 | . . . . . 10 . 6 . . . . . 5 . . . . . . . . . . 1 4 . Rewire 192 | . . . . . 22 2 1 14 1 1 1 . 120 . 1 . 16 9 . . . . . 4 . . Trap 132 | . . . 1 5 . 101 . . . . 3 . 19 . . . . . . . . . . . 3 . Miscellaneous 59 | . . . . . 3 2 2 16 14 . . . 1 8 . 9 . . . . . . . 3 . 1 Route ------- -11/Scrapyard -10/Materials (discovered 4 exits: [*Mat x3] / [*Min]) -10/Mines (discovered 2 exits: [*Mat] / *Sub) -10/Subcaves (discovered 3 exits: *Mat x2 / *Rec) -8/Materials (discovered 3 exits: *Fac x2 / Gar) -8/Garrison (discovered 3 exits: *Mat x3) -8/Materials (discovered 3 exits: *Fac x2 / Gar) -8/Garrison (discovered 3 exits: *Fac x3) -7/Factory (discovered 6 exits: *Fac x2 / *Sto x2 / *Low x2) -7/Storage (discovered 2 exits: *Fac / *Rec) -7/Recycling (discovered 2 exits: *Fac / *Scr) -7/Scraptown (discovered 2 exits: *Fac x2) -5/Factory -5/Extension (discovered 2 exits: *Fac / *Cet) -5/Cetus (discovered 2 exits: *Fac / [*Arc]) -5/Archives (discovered 3 exits: *Fac / *Hub x2) -5/Hub_04(d) -4/Factory (discovered 2 exits: *Upp x2) -4/Upper Caves -4/Upper Caves (discovered 2 exits: *Res / [*War]) -4/Warlord -3/Proximity Caves -3/Research (discovered 3 exits: Arm / *Tes x2) -3/Testing -3/Garrison (discovered 3 exits: *Res x3) -2/Research -2/Quarantine History --------- Turn | Location | Event 2 | -11/Scrapyard | Met Revision 17 5 | -11/Scrapyard | Discovered new exit (range 16) 183 | -11/Scrapyard | Entered Materials 305 | -10/Materials | Build established: Mutant 314 | -10/Materials | Discovered new exit (range 4) 510 | -10/Materials | Discovered new exit (range 8) 640 | -10/Materials | Repaired Med. Laser 819 | -10/Materials | Discovered new exit (range 15) 992 | -10/Materials | Discovered new exit (range 13) 1550 | -10/Materials | Entered Mines 1576 | -10/Mines | Learned 2 Materials zone layouts 1586 | -10/Mines | Discovered new exit (range 8) 1867 | -10/Mines | Learned location of Storage (-7) 2449 | -10/Mines | Discovered new exit (range 6) 2459 | -10/Mines | Entered Subcaves 2746 | -10/Subcaves | Discovered new exit (range 15) 2808 | -10/Subcaves | Visited 4L-MR0's lab 2863 | -10/Subcaves | Shifting Twisted Machinery released Sub. Monowheel 2864 | -10/Subcaves | Shifting Twisted Machinery released Sub. Monowheel 2927 | -10/Subcaves | Shifting Twisted Machinery released Sub. Shrapnel Launcher 2996 | -10/Subcaves | Shifting Twisted Machinery released Sub. Monowheel 3201 | -10/Subcaves | A swath of the cavern ceiling suddenly collapsed 3233 | -10/Subcaves | A swath of the cavern ceiling suddenly collapsed 3316 | -10/Subcaves | Core integrity fell below 50% 3482 | -10/Subcaves | Discovered new exit (range 14) 3791 | -10/Subcaves | Visited Clippyterm 3795 | -10/Subcaves | Learned location of Deep Caves (-7) 3795 | -10/Subcaves | Learned Research security intel 4184 | -10/Subcaves | Shifting Twisted Machinery released Sub. Power Source 4189 | -10/Subcaves | Shifting Twisted Machinery released Sub. Shrapnel Launcher 4391 | -10/Subcaves | Learned location of Mines (-10) 4547 | -10/Subcaves | Discovered new exit (range 11) 5384 | -10/Subcaves | Build established: Derelict-Mutant 5902 | -10/Subcaves | Entered Materials 5902 | -8/Materials | Evolved 4 slots: Propulsion x1, Utility x2, Weapon x1 5903 | -8/Materials | Identified exit to Factory 6014 | -8/Materials | Repaired Spk. Treads 6187 | -8/Materials | Build established: Subdweller-Tank 6830 | -8/Materials | Build established: Gunner 7501 | -8/Materials | Repaired Hrd. Medium Armor Plating 7553 | -8/Materials | Repaired Imp. Assault Rifle 7587 | -8/Materials | Repaired Multitool 7639 | -8/Materials | Repaired Imp. Assault Rifle 7666 | -8/Materials | Repaired Lgt. Treads 7808 | -8/Materials | Discovered exit to Factory (range 16) 8109 | -8/Materials | Garrison activated, responded to threat 8289 | -8/Materials | Identified exit to Garrison 8313 | -8/Materials | Entered Garrison 8313 | -8/Garrison | Accompanied by 2 allies 8337 | -8/Garrison | Triggered checkpoint 8605 | -8/Garrison | Triggered checkpoint 8833 | -8/Garrison | Discovered new exit (range 9) 8843 | -8/Garrison | Triggered checkpoint 8905 | -8/Garrison | Triggered checkpoint 8923 | -8/Garrison | Installed Relay Interface Framework 9572 | -8/Garrison | Lost 4 allies 9655 | -8/Garrison | Triggered checkpoint 9889 | -8/Garrison | Triggered checkpoint 10014 | -8/Garrison | Garrison Relay disabled 10116 | -8/Garrison | Discovered new exit (range 10) 10431 | -8/Garrison | Garrison Relay disabled 10466 | -8/Garrison | Build established: Bothacker-Mutant 10506 | -8/Garrison | Discovered new exit (range 10) 10555 | -8/Garrison | Entered Materials 10845 | -8/Materials | Build established: Bothacker-Gunner 10955 | -8/Materials | First assault squad dispatched 11369 | -8/Materials | Discovered exit to Factory (range 14) 11740 | -8/Materials | Core integrity fell below 50% 12004 | -8/Materials | Repaired Imp. Assault Rifle 12050 | -8/Materials | Build established: Tank 12707 | -8/Materials | Repaired Cld. Ion Engine 12827 | -8/Materials | Identified exit to Garrison 12843 | -8/Materials | Discovered exit to Factory (range 16) 12911 | -8/Materials | Entered Garrison 12911 | -8/Garrison | Accompanied by 1 ally 13106 | -8/Garrison | Garrison Relay disabled 13172 | -8/Garrison | Triggered checkpoint 13353 | -8/Garrison | Discovered exit to Factory (range 55) 13353 | -8/Garrison | Discovered exit to Factory (range 49) 13353 | -8/Garrison | Discovered exit to Factory (range 23) 13365 | -8/Garrison | Triggered checkpoint 13473 | -8/Garrison | Build established: Bothacker-Tank 13688 | -8/Garrison | Expanded RIF knowledge: Program Shield 13752 | -8/Garrison | Entered Factory 13752 | -7/Factory | Evolved 2 slots: Propulsion x1, Utility x1 13982 | -7/Factory | Discovered new exit (range 16) 14045 | -7/Factory | Build established: Bothacker-Skirmisher 14046 | -7/Factory | Identified exit to Lower Caves 14445 | -7/Factory | Build established: Bothacker-Tank 15318 | -7/Factory | Build established: Scavenger-Skirmisher 15767 | -7/Factory | Discovered new exit (range 6) 15779 | -7/Factory | Identified exit to Factory 16455 | -7/Factory | Build established: Scavenger-Tank 16582 | -7/Factory | Allied Derelicts emerged from ambush trap array 16861 | -7/Factory | Identified exit to Storage 16929 | -7/Factory | Discovered exit to Factory (range 13) 16978 | -7/Factory | Lost 3 parts (2n1u) 17055 | -7/Factory | Entered Storage 17055 | -7/Storage | Accompanied by 2 allies 17226 | -7/Storage | Repaired Lgt. Treads 17388 | -7/Storage | Found Prototype Launcher 17388 | -7/Storage | Identified Rocket Array 17395 | -7/Storage | Found Rocket Array 17893 | -7/Storage | Used back door to open Recycling access 17893 | -7/Storage | Discovered new exit (range 5) 18782 | -7/Storage | Discovered exit to Factory (range 16) 19156 | -7/Storage | Build established: Tank 19180 | -7/Storage | Repaired Arm. Treads 19544 | -7/Storage | Identified exit to Recycling 19549 | -7/Storage | Entered Recycling 19549 | -7/Recycling | Accompanied by 1 ally 19955 | -7/Recycling | Discovered new exit (range 16) 20694 | -7/Recycling | Build established: Mutant 21061 | -7/Recycling | Build established: Tank 21623 | -7/Recycling | Scanned before Scraplab entrance 21663 | -7/Recycling | Entered Scraplab 21685 | -7/Recycling | Discovered new exit (range 3) 21688 | -7/Recycling | Identified exit to Scraptown 21693 | -7/Recycling | Entered Scraptown 21693 | -7/Scraptown | Accompanied by 2 allies 21977 | -7/Scraptown | Build established: Mutant 22191 | -7/Scraptown | Discovered new exit (range 11) 22356 | -7/Scraptown | Visited Awakened 22408 | -7/Scraptown | Visited Red Mages 22508 | -7/Scraptown | Visited CR-KLE's Repair Center 22545 | -7/Scraptown | Visited Cyclists 22743 | -7/Scraptown | Visited Science Testing Area 22847 | -7/Scraptown | Visited The Evicted 22897 | -7/Scraptown | Visited Comm Corps 23398 | -7/Scraptown | Turned away by UFD registrar 23517 | -7/Scraptown | CR-KLE repaired 8 parts 23815 | -7/Scraptown | Build established: Scavenger-Tank 25727 | -7/Scraptown | Attacked by Scraptown defenders 25738 | -7/Scraptown | Destroyed Triborg 25764 | -7/Scraptown | Found Tri-treads 25850 | -7/Scraptown | Found Siege Cannon 26374 | -7/Scraptown | Core integrity fell below 50% 26405 | -7/Scraptown | Lost 3 parts (1p1n1u) 26428 | -7/Scraptown | Destroyed 14 combat bots 26589 | -7/Scraptown | System corruption cleaned by C-Scrubber 26757 | -7/Scraptown | Found Prototype Device 26757 | -7/Scraptown | Identified Exp. Recalibrator 28370 | -7/Scraptown | Destroyed 24 combat bots 28467 | -7/Scraptown | Lost 3 parts (1p1n1w) 28512 | -7/Scraptown | Destroyed 11 combat bots 29157 | -7/Scraptown | Found Prototype Processor 29416 | -7/Scraptown | Visited Science Guys 29451 | -7/Scraptown | Found System Spiker 29589 | -7/Scraptown | Visited Curators Association 29651 | -7/Scraptown | Found Prototype Slashing Weapon 29651 | -7/Scraptown | Identified DM-GVY's Chainsaw 29705 | -7/Scraptown | Visited A0-MCA Data Center 29747 | -7/Scraptown | Visited Infowarlord's Domain 29786 | -7/Scraptown | Visited Botcube Research 29828 | -7/Scraptown | Visited Scrapoid Pod Storage 29868 | -7/Scraptown | Visited Observation Area 30343 | -7/Scraptown | Found Exp. Terrain Scanner 30637 | -7/Scraptown | Discovered new exit (range 5) 30912 | -7/Scraptown | Found Prototype Processor 30912 | -7/Scraptown | Identified Expert System (x2) 31068 | -7/Scraptown | Build established: Scavenger-Mutant 31709 | -7/Scraptown | Entered Cyclist Reading Room 31724 | -7/Scraptown | Build established: Scavenger-Tank 32320 | -7/Scraptown | Visited Scrap Suit Storage 32331 | -7/Scraptown | Found Scrap Suit 32532 | -7/Scraptown | Found Lrg. Botcube 32805 | -7/Scraptown | Build established: Scavenger-Mutant 32827 | -7/Scraptown | Found Prototype Wheel 33065 | -7/Scraptown | Found Damper Plating 33088 | -7/Scraptown | Found Prototype Reactor 34386 | -7/Scraptown | Lrg. Botcube activated 34412 | -7/Scraptown | Lrg. Botcube completed mutation into wheeled form, armed with 4 melee weapons. 34832 | -7/Scraptown | Found Scrap Suit 34850 | -7/Scraptown | Build established: Scavenger-Scrapper 35034 | -7/Scraptown | Entered Factory 35034 | -5/Factory | Accompanied by 2 allies 35034 | -5/Factory | Evolved 4 slots: Power x1, Utility x3 35497 | -5/Factory | Discovered new exit (range 9) 35549 | -5/Factory | Entered Extension 35549 | -5/Extension | Accompanied by 2 allies 36274 | -5/Extension | Rescued a captive Derelict 36796 | -5/Extension | Spotted B-75 Beast 36812 | -5/Extension | Allies destroyed B-75 Beast 36816 | -5/Extension | Spotted B-75 Beast 36844 | -5/Extension | Found Lrg. Botcube 36858 | -5/Extension | Lost 4 allies 36858 | -5/Extension | Destroyed B-75 Beast 36936 | -5/Extension | Rescued A7 37199 | -5/Extension | Disrupted transfer network 37275 | -5/Extension | Rescued a captive Derelict 37276 | -5/Extension | Rescued a captive Derelict 37322 | -5/Extension | Rescued a captive Derelict 37479 | -5/Extension | Rescued a captive Derelict 37486 | -5/Extension | Rescued a captive Derelict 37564 | -5/Extension | P-70 Sage assimilated allied 5U-XG5(h) 37703 | -5/Extension | Discovered new exit (range 10) 37704 | -5/Extension | Discovered new exit (range 6) 37760 | -5/Extension | Entered Cetus 37760 | -5/Cetus | Accompanied by 16 allies (A7) 37765 | -5/Cetus | Acquired a Cetus Manufacturing Module code from A7 37794 | -5/Cetus | Spotted Cetus Guard 37794 | -5/Cetus | Spotted Cetus Guard 37796 | -5/Cetus | Spotted Cetus Guard 37797 | -5/Cetus | Spotted Cetus Guard 37809 | -5/Cetus | Rewired Cetus Guard 37811 | -5/Cetus | Rewired Cetus Guard 37812 | -5/Cetus | Rewired Cetus Guard 37818 | -5/Cetus | Rewired Cetus Guard 37879 | -5/Cetus | Build established: Commander-Scrapper 37896 | -5/Cetus | Started Cetus Manufacturing Module 37921 | -5/Cetus | Manufactured an Enhanced Grunt 37924 | -5/Cetus | Escorted A7 to Cetus Mainframe 37944 | -5/Cetus | Discovered new exit (range 16) 37946 | -5/Cetus | Manufactured an Enhanced Grunt 37971 | -5/Cetus | Manufactured an Enhanced Grunt 37996 | -5/Cetus | Manufactured an Enhanced Grunt 37999 | -5/Cetus | Spotted Cetus Guard 37999 | -5/Cetus | Spotted Cetus Guard 38001 | -5/Cetus | Spotted Cetus Guard 38002 | -5/Cetus | Spotted Cetus Guard 38006 | -5/Cetus | Rewired Cetus Guard 38009 | -5/Cetus | Rewired Cetus Guard 38015 | -5/Cetus | Discovered new exit (range 16) 38021 | -5/Cetus | Manufactured an Enhanced Grunt 38021 | -5/Cetus | Rewired Cetus Guard 38023 | -5/Cetus | Allies destroyed Cetus Guard 38032 | -5/Cetus | Met Revision 17 38198 | -5/Cetus | Entered Archives 38198 | -5/Archives | Accompanied by 27 allies (A7) 38203 | -5/Archives | Received a hacking code to weaken MAIN.C 38246 | -5/Archives | Discovered new exit (range 16) 38253 | -5/Archives | Lost 3 allies 38364 | -5/Archives | Discovered new exit (range 16) 38602 | -5/Archives | Discovered new exit (range 15) 38976 | -5/Archives | Lrg. Botcube activated 39010 | -5/Archives | Lrg. Botcube completed mutation into treaded form, armed with 3 guns, 1 melee weapon. 39185 | -5/Archives | Entered Hub_04(d) 39185 | -5/Hub_04(d) | Accompanied by 23 allies 39388 | -5/Hub_04(d) | Network Hub disabled 39400 | -5/Hub_04(d) | Spotted Lightning 39400 | -5/Hub_04(d) | Spotted Lightning 39402 | -5/Hub_04(d) | Spotted Lightning 39436 | -5/Hub_04(d) | System corruption reached 10% 39436 | -5/Hub_04(d) | System corruption reached 30% 39440 | -5/Hub_04(d) | Rewired Lightning 39450 | -5/Hub_04(d) | Rewired Lightning 39458 | -5/Hub_04(d) | Lost 21 allies 39505 | -5/Hub_04(d) | Destroyed Lightning 39799 | -5/Hub_04(d) | Build established: Scavenger-Gunner 40013 | -5/Hub_04(d) | Discovered new exit (range 14) 40085 | -5/Hub_04(d) | First assault squad dispatched 40091 | -5/Hub_04(d) | Spotted Lightning 40092 | -5/Hub_04(d) | Spotted Lightning 40099 | -5/Hub_04(d) | Spotted Lightning 40112 | -5/Hub_04(d) | Rewired Lightning 40115 | -5/Hub_04(d) | Rewired Lightning 40119 | -5/Hub_04(d) | Rewired Lightning 40210 | -5/Hub_04(d) | Entered Factory 40210 | -4/Factory | Accompanied by 7 allies 40210 | -4/Factory | Evolved 2 slots: Utility x2 40232 | -4/Factory | Build established: Scavenger-Tank 40364 | -4/Factory | Identified exit to Upper Caves 40584 | -4/Factory | Entered Upper Caves 40584 | -4/Upper Caves | Accompanied by 8 allies 40884 | -4/Upper Caves | Learned location of 1 exit from Research 41024 | -4/Upper Caves | Attracted the attention of an 0b10 outpost 41138 | -4/Upper Caves | Discovered new exit (range 8) 41417 | -4/Upper Caves | Learned Research trap positions 41470 | -4/Upper Caves | Spotted B-86 Titan 41480 | -4/Upper Caves | Allies destroyed B-86 Titan 41490 | -4/Upper Caves | Learned Research stockpile data 41592 | -4/Upper Caves | Attracted the attention of an 0b10 checkpoint 41896 | -4/Upper Caves | Entered another Upper Caves area 41896 | -4/Upper Caves | Accompanied by 8 allies 41922 | -4/Upper Caves | Discovered new exit (range 13) 42110 | -4/Upper Caves | Found DCF Scrap (10 items) 42406 | -4/Upper Caves | Build established: Commander-Tank 42616 | -4/Upper Caves | Attracted the attention of an 0b10 base 42734 | -4/Upper Caves | Learned Factory terminal intel 42734 | -4/Upper Caves | Learned Extension garrison access intel 42974 | -4/Upper Caves | Spotted B-86 Titan 42984 | -4/Upper Caves | Allies destroyed B-86 Titan 43092 | -4/Upper Caves | Encountered a Warlord checkpoint 43099 | -4/Upper Caves | Learned Research security intel 43144 | -4/Upper Caves | Discovered new exit (range 16) 44007 | -4/Upper Caves | Entered Warlord 44007 | -4/Warlord | Accompanied by 7 allies 44075 | -4/Warlord | Discovered new exit (range 28) 44146 | -4/Warlord | Lost 4 allies 44411 | -4/Warlord | Build established: Scavenger-Tank 45307 | -4/Warlord | Warlord's base attacked by MAIN.C 45315 | -4/Warlord | P-80 Master assimilated allied Lightning 45362 | -4/Warlord | Destroyed 7 combat bots 45407 | -4/Warlord | Spotted B-86 Titan 45407 | -4/Warlord | Spotted B-90 Cyclops 45408 | -4/Warlord | System corruption reached 10% 45408 | -4/Warlord | System corruption reached 30% 45410 | -4/Warlord | Rewired B-86 Titan 45420 | -4/Warlord | Rewired B-90 Cyclops 45444 | -4/Warlord | Entered Proximity Caves 45444 | -3/Proximity Caves | Accompanied by 2 allies 45616 | -3/Proximity Caves | Attracted the attention of an 0b10 checkpoint 45801 | -3/Proximity Caves | Lost 4 parts (1u3w) 45813 | -3/Proximity Caves | Destroyed 8 combat bots 45889 | -3/Proximity Caves | Spotted B-86 Titan 45898 | -3/Proximity Caves | Rewired B-86 Titan 46045 | -3/Proximity Caves | Build established: Hacker-Mutant 46099 | -3/Proximity Caves | Attracted the attention of an 0b10 base 46262 | -3/Proximity Caves | Discovered new exit (range 8) 46282 | -3/Proximity Caves | Entered Research 46282 | -3/Research | Evolved 2 slots: Propulsion x2 46283 | -3/Research | Identified exit to Armory 46284 | -3/Research | Loaded intel: 64 trap records 46367 | -3/Research | Identified exit to Testing 46482 | -3/Research | Revision forces began assault on 0b10 46487 | -3/Research | Central database locked down 46529 | -3/Research | Met up with Revision 17++ 46605 | -3/Research | Spotted B-86 Titan 46685 | -3/Research | Entered Testing 46742 | -3/Testing | Identified exit to Garrison 46760 | -3/Testing | Entered Garrison 46808 | -3/Garrison | Expanded RIF knowledge: Watcher Feeds 46846 | -3/Garrison | Triggered checkpoint 46889 | -3/Garrison | Garrison Relay disabled 47063 | -3/Garrison | Build established: Scavenger-Gunner 47216 | -3/Garrison | Triggered checkpoint 47302 | -3/Garrison | Triggered checkpoint 47328 | -3/Garrison | Garrison Relay disabled 47373 | -3/Garrison | Discovered new exit (range 68) 47373 | -3/Garrison | Discovered new exit (range 55) 47373 | -3/Garrison | Discovered new exit (range 12) 47411 | -3/Garrison | Spotted Striker 47437 | -3/Garrison | Allies destroyed Striker 47455 | -3/Garrison | Rewired Striker 47536 | -3/Garrison | Triggered checkpoint 47598 | -3/Garrison | Triggered checkpoint 47675 | -3/Garrison | Triggered checkpoint 47773 | -3/Garrison | Spotted B-90 Cyclops 47814 | -3/Garrison | Rewired B-75 Beast 47815 | -3/Garrison | Rewired B-75 Beast 47815 | -3/Garrison | Allies destroyed B-90 Cyclops 47844 | -3/Garrison | Lost 3 parts (1p2w) 47985 | -3/Garrison | Entered Research 47985 | -2/Research | Accompanied by 2 allies 47985 | -2/Research | Evolved 2 slots: Power x1, Utility x1 48152 | -2/Research | Identified exit to Garrison 48735 | -2/Research | First assault squad dispatched 49029 | -2/Research | Discovered new exit (range 12) 49029 | -2/Research | Spotted B-90 Cyclops 49063 | -2/Research | Identified exit to Quarantine 49067 | -2/Research | Entered Quarantine 49130 | -2/Quarantine | Cryocooling Duct disabled 49145 | -2/Quarantine | Ambient heat levels rising (+20) 49145 | -2/Quarantine | Non-combat units ordered to evacuate 49366 | -2/Quarantine | Build established: Scavenger-Skirmisher 49439 | -2/Quarantine | Lost 4 parts (1p2u1w) 49462 | -2/Quarantine | Found Alien Artifact 49469 | -2/Quarantine | Found Alien Artifact 49472 | -2/Quarantine | Found Alien Artifact 49530 | -2/Quarantine | Found Alien Artifact 49530 | -2/Quarantine | Identified Phase Armor 49628 | -2/Quarantine | Lost 6 parts (1p3n1u1w) 49663 | -2/Quarantine | Core integrity fell below 50% 49697 | -2/Quarantine | Lost 3 parts (1p1n1u) 49817 | -2/Quarantine | First assault squad dispatched 49873 | -2/Quarantine | Cryocooling Duct disabled 49888 | -2/Quarantine | Ambient heat levels rising (+20) 49888 | -2/Quarantine | Combat units ordered to evacuate 49901 | -2/Quarantine | System corruption reached 10% 49973 | -2/Quarantine | Lost 5 parts (1p3u1w) 49988 | -2/Quarantine | Quarantine Guard activated 50022 | -2/Quarantine | Spotted Quarantine Guard 50022 | -2/Quarantine | Spotted Quarantine Guard 50024 | -2/Quarantine | Spotted Quarantine Guard 50024 | -2/Quarantine | Spotted Quarantine Guard 50025 | -2/Quarantine | Spotted Quarantine Guard 50038 | -2/Quarantine | Spotted Quarantine Guard 50039 | -2/Quarantine | Identified Transdimensional Reconstructor (x3) 50039 | -2/Quarantine | Warped through subspace 50136 | -2/Quarantine | Warped through subspace 50255 | -2/Quarantine | Found Alien Artifact 50271 | -2/Quarantine | Build established: Scavenger-Mutant 50271 | -2/Quarantine | Found Alien Artifact 50329 | -2/Quarantine | Spotted Quarantine Guard 50364 | -2/Quarantine | Core integrity fell below 20% 50372 | -2/Quarantine | Found Transdimensional Reconstructor 50414 | -2/Quarantine | Destroyed by Quarantine Guard with Hypercooled Linear Accelerator Last Messages --------------- 50365_ Acquired 7 matter. 50366_ Adv. Cooling System destroyed. 50366_ Quantum Reactor destroyed. 50368_ Acquired 1 matter. 50372_ Acquired Transdimensional Reconstructor. 50386_ Quarantine Guard Adv. Cooling System severed. 50387_ Biometal Leg blasted off. 50389_ Quarantine Guard Adv. Medium Treads severed. 50390_ Centrium Wheel blasted off. 50393_ Biometal Leg blasted off. 50394_ System corrupted: IFF burst signal emitted. 50396_ Adv. Hardlight Generator destroyed. 50398_ Quarantine Guard Mic. Nuclear Core severed. 50401_ Quarantine Guard Adv. Cryofiber Web severed. 50402_ Adv. Coolant Injector blasted off. 50405_ Imp. Coolant Injector destroyed. 50405_ Critical hit (Blast). 50408_ Adv. Signal Interpreter destroyed. 50408_ Lgt. Quantum Reactor destroyed. 50413_ Acquired Adv. Medium Treads. Map ----- +----------------------------------------------------+ | ????????#############????????????????????????????? | | ?????????????????????????????????????????????????? | | ?????????????????????????????????????????????????? | | ??????????????####???????????????????????????????? | | ???#####??##### ####?########???????????????????? | | ???# #?## # " ### ! #???????????????????? | | #??# #?## # # ! #???????????????????? | | #### ### = = #???????????????????? | | # = = #???????????????????? | | # ##### #### # # [ #??#????????????????? | | # #???# #?# #% *[= #???????????????????? | | # #?#?# ### # ## # # #####??????????????????? | | # #???# #?#????????????????? | | # ##### "" %% #??????????????????? | | # + """ """ = "" #??????????????????? | | ## """ R" "" "" #??????????????????? | | # ## """ """ """"" #??????????????????? | | # ## """ "" #??????????????????? | | # ## """ ###############??????????????????? | | # ## ###########??????????????????????? | | # ######+## ### # ""!!##?????#???????????????? | | = ""!#??????????????????????? | | !""#?#????????????????????? | | " """ """ """ %%"##?????????????????????? | | " """ """ "" *="=!#??????#??????????????? | | " """ """ "" # "Y@##?????????????????????? | | "!=#??????????????????????? | | " """ """ "" ######??????????????????????? | | " """ """ "" % #?#?##?????????????????????? | | " """ """ " #????#??????????????#??????? | | [ #??????????????????????????? | | % [ #?#????????????????????????? | | ######""#""""% "###??????????????????????????? | | "###### ###??#??#?????????????????????? | | ##????# #??????????????#??????????????? | | #?????#####??????????????#??????????????? | | #?#???????????#????????????????#????????? | | ####??????????#??????#??????????#???????? | | ""#??????????#??????????????????????????? | | ""#????????????????????##???????????????? | | T"#?##??????#?##???#????????????????????? | | ""###??#????##??????????#?###???????????? | | ""#?????#?#???#?????????????????????????? | | ###????#??#?????????????????????????????? | | #???????????????#???#???????#???????????? | | " ###?#?????????????##?????????#????????????? | | " ##???#???????????????????#?????????????????? | | ###?#?????????????????#??????????????????????? | | #######?????##??##???????????????????????????????? | | ??#???????#??#????##?????????????????????????????? | +----------------------------------------------------+ Best States ------------- Heat Dissipation 99 Coolant Potential 180 Energy Generation 65 Energy Capacity 950 Matter Stores 300 Matter Capacity 300 Sight Range 16 Robot Scan Range 18 Terrain Scan Range 30 Terrain Scan Density 235 Jamming Range 16 Armor Coverage 1200 Evasion (%) 40 Targeting Accuracy 10 Target Analysis 6 Recoil Reduction 6 Energy Filtering 30 Offensive Hacking 33 Defensive Hacking 12 Relay Coupler Types 2 Relay Coupler Value 33 Trap Extractor Capacity 8 Item Schematics ----------------- Multitool | -8/Materials | Scanalyzed Mak. Laser | -8/Materials | Scanalyzed Imp. Shield Generator | -7/Recycling | Hacked Adv. Force Field | -3/Research | Hacked Exp. Core Analyzer | -3/Research | Hacked Robot Schematics ------------------ G-47 Trooper | -8/Materials | Hacked Fabricated ------------ Nothing Alien Tech Used ----------------- Phase Armor Transdimensional Reconstructor Achievements -------------- None Challenges ------------ None Game ------ Seed NodeHugeDissipator Manual? 0 Play Time 04:04:26 Cumulative 1700.1 hours Start 2024.09.26 @ 00:36:10 End 2024.09.26 @ 13:29:41 Sessions 5 Manual Loads 0 Difficulty Rogue Special Mode None Game No. 1157 Rogue 1153 Adventurer 4 Explorer 0 Win Type - Total 215 Types 160/11/15/9/3/1/4/8/4 Lore% 98 Gallery% 98 Achievement% 98 Wizard Run 0 Options --------- Layout 2 ASCII 0 Keyboard 1 Movement Vi Keybinds 0 Fullscreen 0 Font 24/Terminus Map View 59x48 Zoom Use 0% Tactical HUD 1 Map Filters NONE Filters NONE Steam 1 RUN: 9a4ff795-f21d-487a-a8bf-ea2f9427c4ca